[Event "12th WLC Weekend 2022"]
[Site "Eindhoven"]
[Date "2022.05.14"]
[Round "4.7"]
[White "Jansen, Bob"]
[Black "Cebula, Jerzy"]
[Result "1-0"]
[ECO "B21"]
[WhiteElo "2174"]
[BlackElo "1994"]
[Annotator "TA"]
[PlyCount "51"]
[EventDate "2022.05.13"]
[EventType "swiss"]
[EventCountry "NED"]
[SourceTitle "playchess.com"]
[Source "ChessBase"]
[SourceQuality "1"]
[TimeControl "5400+30"]

{[%evp 20,51,-12,-14,452,458,552,542,506,502,595,618,500,383,642,372,343,277,273,268,620,620,596,613,680,686,659,463,642,658,2777,2537,29981,3968]} 1. d4 {[%emt 0:00:02]} c5 {[%emt 0:00:57]} 2. e4 {[%emt 0:04:56]} cxd4 {[%emt 0:01:11]} 3. c3 {[%emt 0:00:02]} dxc3 {[%emt 0:01:50]} 4. Nxc3 {[%emt 0:00:38]} Nc6 {[%emt 0:00:59]} 5. Nf3 {[%emt 0:00:04]} e6 {[%emt 0:05:58]} 6. Bc4 {[%emt 0:00:17]} d6 {[%emt 0:01:20]} 7. O-O {[%emt 0:00:15]} Be7 {[%emt 0:00:43]} 8. Qe2 {[%emt 0:00:11]} a6 {[%emt 0:00:32]} 9. Rd1 {[%emt 0:00:40]} Qc7 {[%emt 0:01:24]} 10. Bf4 {[%emt 0:01:00]} Nf6 {[%emt 0:05:34]} 11. Rac1 {[%emt 0:01:08] 11.e5 injects fresh life into this line.} Ne5 $2 {[%emt 0:05:45][%mdl 8192] Against Qd3. B21: Sicilian: 2 f4 and Morra Gambit.} (11... O-O $11) 12. Bxe5 $18 {[%emt 0:23:15]} dxe5 {[%emt 0:00:37] [#]} 13. Nb5 $1 {[%emt 0:04:04][%mdl 512]} Qb8 {[%emt 0:05:50] [#] White is clearly winning.} (13... Qc5 14. Bd3) 14. Nc7+ {[%emt 0:00:08][%mdl 512]} Kf8 {[%emt 0:00:13]} (14... Qxc7 15. Bb5+) 15. Nxa8 {[%emt 0:00:23]} Qxa8 {[%emt 0:00:09]} 16. Nxe5 {[%emt 0:00:17][%cal Bf3e5,Be5c4,Bc4d6][%mdl 32] [#]} h5 $146 {[%emt 0:03:32]} (16... Qb8 17. Bb3 g6) ({Predecessor:} 16... g6 17. Bb3 Kg7 18. Rc7 Re8 19. Qf3 b5 20. Nxf7 Qxe4 21. Qxe4 Nxe4 22. f3 Nc5 23. Nd6 Kf8 24. Nxe8 {1-0 (24) Paskalev,V (1597)-Patrias,J (1812) Rostock 2016}) 17. a4 {[%emt 0:02:07]} Qb8 {[%emt 0:00:45] [#]} 18. Bb3 $1 {[%emt 0:08:55]} g6 {[%emt 0:03:42]} 19. Nc4 {[%emt 0:04:57] Black must now prevent Nb6.} Bc5 {[%emt 0:15:41] Against Nb6} (19... Kg7 20. Nb6 Ng4) 20. e5 {[%emt 0:28:32]} Ng4 {[%emt 0:02:45]} 21. Nd6 {[%emt 0:00:38]} b6 {[%emt 0:05:07]} 22. h3 {[%emt 0:09:10]} Nh6 {[%emt 0:03:42]} 23. Bc2 {[%emt 0:03:20]} Kg7 {[%emt 0:04:46]} 24. Qf3 {[%emt 0:02:09] Against Bb7} Rf8 {[%emt 0:01:37]} 25. Qf6+ {[%emt 0:01:03]} Kg8 {[%emt 0:01:53] [#]} 26. Bxg6 $1 {[%emt 0:01:05] Black did not feel at home in the position after the opening.  Weighted Error Value: White=0.44/Black=1.59} 1-0

[Event "12th WLC Weekend 2022"]
[Site "Eindhoven"]
[Date "2022.05.14"]
[Round "4.8"]
[White "Kools, Thomas"]
[Black "Margarido, Jose Miguel Teixeira"]
[Result "1/2-1/2"]
[ECO "B23"]
[WhiteElo "2160"]
[BlackElo "2127"]
[Annotator "TA"]
[PlyCount "72"]
[EventDate "2022.05.13"]
[EventType "swiss"]
[EventCountry "NED"]
[SourceTitle "playchess.com"]
[Source "ChessBase"]
[SourceQuality "1"]
[TimeControl "5400+30"]

{[%evp 15,72,-11,-4,-21,-7,-47,-50,-54,-17,-25,-24,-43,-39,-50,-47,-39,-22,-20,-18,-38,-10,-5,0,-40,-29,-38,-36,-39,-38,-35,0,-7,-7,-11,0,-17,-12,-15,-15,-18,-18,-15,0,0,0,0,0,0,0,-8,-7,-7,-7,-7,-7,-7,-7,-7,-7]} 1. e4 {[%emt 0:00:03]} c5 {[%emt 0:00:08]} 2. Nc3 {[%emt 0:00:05]} e6 {[%emt 0:00:09]} 3. g3 {[%emt 0:00:06]} d5 {[%emt 0:00:18]} 4. exd5 {[%emt 0:00:07]} exd5 {[%emt 0:00:04]} 5. Bg2 {[%emt 0:00:08]} Nf6 {[%emt 0:00:07]} 6. d3 {[%emt 0:00:07]} d4 {[%emt 0:00:16]} 7. Ne4 {[%emt 0:00:04]} Nxe4 {[%emt 0:00:13]} 8. Bxe4 {[%emt 0:00:06]} Bd6 {[%emt 0:00:17]} 9. Ne2 {[%emt 0:00:45] B23: Closed Sicilian: Lines without g3.} O-O {[%emt 0:00:16]} 10. Bg2 {[%emt 0:07:58]} Re8 {[%emt 0:02:08]} 11. O-O {[%emt 0:00:07] Black is slightly better.} Nc6 {[%emt 0:00:14]} (11... Bg4 $5 {[%cal Rg4e2]} 12. Re1 Qd7 $15) 12. h3 {[%emt 0:03:42]} Bd7 {[%emt 0:13:35]} 13. Bf4 {[%emt 0:03:11] [#]} Ne5 $146 {[%emt 0:00:50]} ({Predecessor:} 13... Bf8 14. Qd2 h6 15. g4 Rc8 16. Bh2 Be7 17. Ng3 Be6 18. f4 c4 19. f5 c3 20. bxc3 dxc3 {0-1 (28) Garcia Perez,J (1754)-Andreev,S (2090) Fermo 2009}) 14. Bxe5 {[%emt 0:04:11]} Bxe5 {[%emt 0:01:24]} 15. Nc1 {[%emt 0:04:16]} Qc8 {[%emt 0:12:43]} 16. h4 {[%emt 0:04:18]} Bg4 {[%emt 0:20:21]} 17. Bf3 {[%emt 0:00:49]} Bh3 {[%emt 0:00:29]} 18. Re1 {[%emt 0:00:46]} Qc7 {[%emt 0:00:24][%cal Oe5g3] [#] White must now prevent ...Bxg3!} 19. Kh2 {[%emt 0:06:08]} Bd7 {[%emt 0:01:29] A strong pair of Bishops.} 20. Nb3 {[%emt 0:02:15]} Re7 {[%emt 0:02:29]} 21. Nd2 {[%emt 0:05:07]} Rae8 {[%emt 0:00:37][%cal Oe5g3] Threatens to win with ...Bxg3+!} 22. Kg2 {[%emt 0:00:10]} f5 {[%emt 0:09:25]} 23. Bd5+ {[%emt 0:16:31] The position is equal.} Kh8 {[%emt 0:00:26]} 24. Qf3 {[%emt 0:01:46]} b6 {[%emt 0:01:09]} 25. Re2 {[%emt 0:05:39]} Bf6 {[%emt 0:01:14]} 26. Rae1 {[%emt 0:01:11]} Rxe2 {[%emt 0:02:38]} 27. Rxe2 {[%emt 0:00:07]} Rxe2 {[%emt 0:05:52]} 28. Qxe2 {[%emt 0:00:07]} Qe5 {[%emt 0:01:52]} 29. Qxe5 {[%emt 0:04:42]} Bxe5 $11 {[%emt 0:00:05][%mdl 4096] Endgame KBB-KBN} 30. f4 {[%emt 0:00:14]} Bf6 {[%emt 0:03:44]} 31. Nf3 {[%emt 0:01:43]} g6 {[%emt 0:00:33]} 32. Kf2 {[%emt 0:03:35]} Kg7 {[%emt 0:00:59]} 33. Ke2 {[%emt 0:00:17]} h6 {[%emt 0:02:57]} 34. b3 {[%emt 0:01:28]} Kf8 {[%emt 0:00:52]} 35. a4 {[%emt 0:00:07]} Ke7 {[%emt 0:01:28]} 36. Kd2 {[%emt 0:01:24]} Be6 {[%emt 0:07:39] Weighted Error Value: White=0.06 (flawless) /Black=0.06 (flawless)} 1/2-1/2

[Event "12th WLC Weekend 2022"]
[Site "Eindhoven"]
[Date "2022.05.14"]
[Round "4.9"]
[White "Duson, Robin"]
[Black "van der Valk, Niklas"]
[Result "0-1"]
[ECO "E54"]
[WhiteElo "1980"]
[BlackElo "2200"]
[Annotator "TA"]
[PlyCount "156"]
[EventDate "2022.05.13"]
[EventType "swiss"]
[EventCountry "NED"]
[SourceTitle "playchess.com"]
[Source "ChessBase"]
[SourceQuality "1"]
[TimeControl "5400+30"]

{[%evp 20,156,0,-9,0,-56,-8,-23,0,0,0,0,0,0,0,-11,-11,0,0,0,0,0,0,0,0,-39,-39,-39,-39,-62,-62,-62,-70,-90,-12,-235,404,-90,-41,-90,-95,-90,-98,-105,-105,-107,-97,-105,-95,-89,-91,-110,-110,-135,-112,-124,-122,-174,-135,-161,-159,-174,-133,-178,-124,-166,-137,-163,-137,-126,-95,-161,-126,-146,-146,-172,-167,-166,-166,-345,-328,-391,-329,-280,-195,-195,-182,-246,-245,-232,-222,-354,-350,-341,-233,-327,-226,-267,-18,-28,-28,-45,-45,-80,-76,-76,-75,-69,0,-75,-75,-73,-92,-156,-156,-252,-156,-151,-127,-257,-247,-245,-250,-231,-196,-918,-345,-29979,-29977,-29972,-724,-704,-697,-29972,-29973,-29981,-29982,-29983,-29984]} 1. d4 {[%emt 0:00:05]} Nf6 {[%emt 0:00:05]} 2. c4 {[%emt 0:00:07]} e6 {[%emt 0:00:04]} 3. Nc3 {[%emt 0:00:06]} Bb4 {[%emt 0:00:04]} 4. e3 {[%emt 0:00:06]} O-O {[%emt 0:00:43]} 5. Bd3 {[%emt 0:00:11]} d5 {[%emt 0:00:17]} 6. Nf3 {[%emt 0:00:08]} c5 {[%emt 0:00:36]} 7. O-O {[%emt 0:00:11]} cxd4 {[%emt 0:00:24]} 8. exd4 {[%emt 0:00:10]} dxc4 {[%emt 0:00:15]} 9. Bxc4 {[%emt 0:00:07]} b6 {[%emt 0:00:25]} 10. Bg5 {[%emt 0:01:56]} Bb7 {[%emt 0:00:09]} 11. Re1 {[%emt 0:11:05]} Nc6 {[%emt 0:01:51] [#] E54: Nimzo-Indian: Rubinstein: Main Line: 7...dxc4 8 Bxc4.} 12. Re3 $146 {[%emt 0:07:35]} ({White should try} 12. a3 $11 Be7 13. Bd3) ({Predecessor:} 12. a3 Be7 13. Qd3 h6 14. Bf4 Bd6 15. Be5 Bxe5 16. dxe5 Qxd3 17. Bxd3 Rfd8 18. Rad1 Nd7 19. Be4 Na5 20. Bxb7 Nxb7 21. b4 {0-1 (62) Pelletier,Y (2581)-Howell,D (2658) Tornelo INT 2021}) 12... Rc8 {[%emt 0:05:54]} (12... Be7 $15) 13. Bd3 {[%emt 0:03:50][%cal Od4d5]} Be7 {[%emt 0:05:24] Black has an edge.} 14. Ne5 {[%emt 0:12:07]} g6 {[%emt 0:11:38]} (14... Nxd4 $2 15. Bxf6 g6 16. Bxe7 Qxe7 17. Bxg6 $1 {[%mdl 512]} hxg6 18. Qxd4 $18) 15. Bh6 $1 {[%emt 0:06:00]} Nxd4 {[%emt 0:20:54]} 16. Bxf8 {[%emt 0:01:58]} Bxf8 {[%emt 0:01:06]} 17. Qa4 {[%emt 0:09:22]} a6 {[%emt 0:04:26]} 18. Rd1 {[%emt 0:04:18]} b5 {[%emt 0:06:12]} 19. Bxb5 {[%emt 0:02:11]} axb5 {[%emt 0:00:45]} 20. Qxd4 {[%emt 0:02:05]} Qxd4 {[%emt 0:00:28]} 21. Rxd4 {[%emt 0:00:06]} Bc5 {[%emt 0:02:13] This bishop pair is nice.} 22. Red3 {[%emt 0:07:22]} Bxd4 {[%emt 0:03:03]} 23. Rxd4 {[%emt 0:00:07]} Nd5 {[%emt 0:00:53]} 24. h3 {[%emt 0:01:37]} Nxc3 {[%emt 0:05:55]} 25. bxc3 $15 {[%emt 0:00:10][%mdl 4096] Endgame KRB-KRN} Bd5 {[%emt 0:05:08]} (25... Rxc3 26. Rd8+ Kg7 27. Rd7 Rc1+ 28. Kh2 $11) 26. Rb4 {[%emt 0:02:43]} Rc7 {[%emt 0:00:14]} (26... Bxa2 $6 27. Rxb5 Bd5 28. c4 Bxc4 29. Rb7 $15) (26... Rxc3 $17 27. Rxb5 Rc1+ 28. Kh2 Rc2) 27. c4 $2 (27. a4 $11) 27... Rxc4 $4 {[%emt 0:00:30][%mdl 8192]} (27... bxc4 $19 {avoids the disaster.} 28. a4 Kf8) 28. Rxb5 $2 {[%emt 0:01:07]} (28. Nxc4 $18 bxc4 29. a4) 28... Rc1+ $17 {[%emt 0:04:30]} 29. Kh2 {[%emt 0:00:07]} Rc2 {[%emt 0:02:32]} ({Reject} 29... Bxa2 30. Rb8+ Kg7 31. Rb7 $11) 30. Ng4 {[%emt 0:05:12]} Bxa2 {[%emt 0:03:00]} 31. Rb7 {[%emt 0:00:34]} Kg7 {[%emt 0:02:02] Hoping for ...h5.} 32. Kg3 {[%emt 0:01:13]} Re2 {[%emt 0:01:05] Prevents Ne5.} 33. Ne3 {[%emt 0:01:53]} h5 {[%emt 0:02:46]} 34. Kf3 {[%emt 0:00:52]} Rd2 {[%emt 0:00:46]} 35. Ra7 {[%emt 0:01:39]} g5 {[%emt 0:00:45]} 36. g3 {[%emt 0:01:47]} Bb1 {[%emt 0:02:07]} 37. Nc4 {[%emt 0:01:06]} Rd5 {[%emt 0:00:43]} 38. Ne3 {[%emt 0:01:46]} (38. h4 $17 {keeps fighting.}) 38... Rc5 {[%emt 0:00:21]} 39. Rb7 {[%emt 0:01:33]} Bd3 {[%emt 0:00:14]} 40. Ra7 {[%emt 0:00:26]} Bb5 {[%emt 0:00:22]} 41. Ke4 {[%emt 0:01:45]} Kg6 {[%emt 0:03:53]} (41... Rc1 $19 42. Ra5 Rb1) 42. Kd4 {[%emt 0:01:15]} Rc8 {[%emt 0:00:22]} 43. Ra5 {[%emt 0:01:07]} Be2 {[%emt 0:00:25]} 44. h4 {[%emt 0:02:14]} gxh4 {[%emt 0:00:20]} 45. gxh4 {[%emt 0:00:14]} (45. Ng2 $17) 45... Rd8+ {[%emt 0:01:00]} 46. Ke4 {[%emt 0:00:47]} f6 $1 {[%emt 0:01:38] Inhibits Rg5+.} 47. Ng2 {[%emt 0:00:51] [#] aiming for Nf4+.} e5 {[%emt 0:00:25] Against Nf4+} 48. f4 {[%emt 0:01:34]} Bf1 {[%emt 0:02:28]} 49. f5+ $2 {[%emt 0:03:18]} (49. Kf3 {was the only defense.}) 49... Kg7 $19 {[%emt 0:00:27]} 50. Ra7+ {[%emt 0:00:17]} Kg8 {[%emt 0:00:12]} 51. Ne3 {[%emt 0:00:46]} Bb5 {[%emt 0:02:17]} 52. Kf3 {[%emt 0:01:00]} Bc6+ {[%emt 0:00:29]} 53. Kg3 {[%emt 0:00:40]} (53. Ke2 $142) 53... Rd3 {[%emt 0:00:40]} 54. Kf2 {[%emt 0:00:07] [#]} Rd2+ $1 {[%emt 0:01:23]} 55. Kg3 {[%emt 0:00:49]} (55. Kg1 $142) 55... Re2 {[%emt 0:00:22]} 56. Nc4 {[%emt 0:00:14]} Rg2+ {[%emt 0:00:42]} 57. Kh3 {[%emt 0:00:07]} Rf2 {[%emt 0:00:26]} 58. Nd6 {[%emt 0:00:21]} e4 $2 {[%emt 0:00:33]} (58... Rd2 $19 59. Nc8 Be4) 59. Re7 {[%emt 0:00:59]} Rf3+ {[%emt 0:00:22]} 60. Kh2 {[%emt 0:00:27]} e3 {[%emt 0:00:13]} 61. Nc4 {[%emt 0:00:33]} Rf2+ {[%emt 0:00:27]} ({Weaker is} 61... Rxf5 62. Nxe3 Rf2+ 63. Kg1 $17) 62. Kg1 {[%emt 0:00:13]} Rg2+ {[%emt 0:00:52]} 63. Kf1 {[%emt 0:00:06]} Rf2+ {[%emt 0:00:38]} 64. Kg1 $1 {[%emt 0:00:24]} Rxf5 {[%emt 0:00:30][%cal Oe3e2] Black is more active.} 65. Nxe3 {[%emt 0:00:34]} Rf4 {[%emt 0:00:14]} 66. Re6 {[%emt 0:02:03]} (66. Kh2 $142) 66... Be4 $17 {[%emt 0:01:16]} 67. Nc4 {[%emt 0:01:10]} (67. Kh2 $17 {was necessary.}) 67... Kg7 {[%emt 0:00:00]} ({Inferior is} 67... Rxh4 68. Rxf6 Kg7 69. Rd6 $17) 68. Nd6 {[%emt 0:00:41] Strongly threatening Re7+.} Bd5 {[%emt 0:00:13]} 69. Re7+ {[%emt 0:00:37]} (69. Re3 $17 {was called for.}) 69... Kg6 $19 {[%emt 0:00:07]} 70. Ne8 {[%emt 0:01:19]} Rxh4 {[%emt 0:00:30]} 71. Rg7+ {[%emt 0:00:08]} Kf5 {[%emt 0:00:03] ...Rg4+ is the strong threat.} 72. Nd6+ $2 {[%emt 0:00:15]} (72. Rd7 Bc6 73. Ng7+ Kg5 74. Rd8) 72... Kf4 $2 {[%emt 0:01:13]} (72... Ke5 {( -> ...Rg4+)} 73. Nf7+ Kf4) 73. Rg6 $2 {[%emt 0:00:32]} (73. Rh7 $19) 73... Ke5 {[%emt 0:00:47]} 74. Nb5 {[%emt 0:00:33]} Rc4 {[%emt 0:00:37]} (74... Rb4 $142 75. Na3 Rb3 76. Nc2 Rb1+ 77. Kf2 Rb2 78. Rh6 Rxc2+ 79. Kg3 f5 80. Kh3 Rc1 81. Kg3 Rf1 82. Rxh5 Rh1 83. Rxh1 Bxh1 84. Kh3 f4 85. Kh2 Be4 86. Kg1 Kd4 87. Kf1 Ke3 88. Ke1 f3 89. Kf1 Bd3+ 90. Kg1 f2+ 91. Kh2 f1=Q 92. Kg3 Qf4+ 93. Kg2 Qf2+ 94. Kh3 Bf5#) 75. Rh6 {[%emt 0:00:28]} h4 {[%emt 0:00:33] White must now prevent ...f5.} 76. Kh2 {[%emt 0:00:45]} Rc5 {[%emt 0:00:31] Black mates.} 77. Na3 {[%emt 0:00:53]} Ra5 {[%emt 0:00:25]} 78. Nb1 {[%emt 0:00:22]} Ra1 {[%emt 0:00:34] Weighted Error Value: White=0.43/Black=0.35} 0-1

[Event "12th WLC Weekend 2022"]
[Site "Eindhoven"]
[Date "2022.05.14"]
[Round "4.10"]
[White "Ciornei, Dragos"]
[Black "Suranyi, Pal"]
[Result "1/2-1/2"]
[ECO "B06"]
[WhiteElo "2164"]
[BlackElo "2013"]
[Annotator "TA"]
[PlyCount "94"]
[EventDate "2022.05.13"]
[EventType "swiss"]
[EventCountry "NED"]
[SourceTitle "playchess.com"]
[Source "ChessBase"]
[SourceQuality "1"]
[TimeControl "5400+30"]

{[%evp 9,94,22,35,22,46,35,41,21,21,12,91,89,106,63,82,67,129,79,64,60,45,22,85,-17,-12,-10,-8,-26,-10,-32,17,16,35,53,39,-70,-72,-57,-58,-68,-76,-112,-126,-106,-69,-77,-87,-89,-79,-129,-134,-132,-139,-144,-135,-130,-137,-152,-22,-18,717,-169,0,0,548,463,360,-122,0,-104,-26,-222,-215,-350,-250,-286,0,0,0,0,0,0,0,0,0,0,0]} 1. e4 {[%emt 0:04:49]} g6 {[%emt 0:01:15]} 2. d4 {[%emt 0:00:17]} Bg7 {[%emt 0:00:05]} 3. Nc3 {[%emt 0:00:51]} d6 {[%emt 0:00:05]} 4. h3 {[%emt 0:01:17]} a6 {[%emt 0:02:12]} 5. a4 {[%emt 0:00:40]} Nc6 {[%emt 0:03:37]} 6. Nf3 {[%emt 0:00:39] B06: Modern Defence.} e5 {[%emt 0:03:35]} 7. dxe5 {[%emt 0:01:27]} (7. Bg5 $5 {[%cal Rg5d8]} Bf6 8. Bxf6 Nxf6 9. Qd2 $11) 7... Nxe5 {[%emt 0:14:30]} 8. Nxe5 {[%emt 0:01:47] White is slightly better.} Bxe5 {[%emt 0:00:10] [#]} 9. Bc4 $146 {[%emt 0:02:13]} ({Predecessor:} 9. Be3 Be6 10. Be2 Ne7 11. O-O Qd7 12. f4 Bxc3 13. bxc3 f5 14. Bf3 O-O 15. exf5 Nxf5 {½-½ (23) Kharitonov,A (2538)-Tukhaev,A (2520) Rethymno 2013}) 9... Bxc3+ {[%emt 0:10:48]} (9... Be6 $11 10. Qd3 Ne7) 10. bxc3 $16 {[%emt 0:02:48]} Qf6 {[%emt 0:00:55]} 11. Qd3 {[%emt 0:05:28]} Be6 {[%emt 0:12:06]} 12. Be3 {[%emt 0:14:14] [#] Black must now prevent Bd4. A strong pair of Bishops.} Qe7 {[%emt 0:06:55]} (12... Bxc4 $14 13. Qxc4 Qe7) 13. O-O {[%emt 0:03:26] White is more active.} (13. Bd5 $142) 13... Nf6 {[%emt 0:01:55]} 14. Rae1 {[%emt 0:17:16]} Nd7 {[%emt 0:08:36]} 15. f4 {[%emt 0:04:37] Prevents Ne5.} f6 {[%emt 0:05:29]} (15... Bxc4 $11 16. Qxc4 O-O-O) 16. Bd4 {[%emt 0:09:16]} (16. Rb1 $16) 16... Bxc4 $11 {[%emt 0:06:24]} 17. Qxc4 {[%emt 0:00:37] aiming for Rb1.} O-O-O {[%emt 0:00:52]} 18. a5 {[%emt 0:02:12]} Rhe8 {[%emt 0:02:22]} 19. Qb3 {[%emt 0:06:49]} c5 {[%emt 0:02:31]} (19... Nc5 $15 {was preferrable.} 20. Bxc5 dxc5) 20. Bf2 {[%emt 0:01:10]} Nb8 {[%emt 0:00:50][%cal Bd7b8,Bb8c6,Bc6a5][%mdl 32]} 21. Bh4 {[%emt 0:03:44][%cal Oe4e5]} Nc6 {[%emt 0:12:01] Against e5} 22. Kh1 {[%emt 0:06:54]} (22. e5 $14 dxe5 23. fxe5 Nxe5 24. Rxf6) 22... Nxa5 $15 {[%emt 0:01:10]} 23. Qa4 {[%emt 0:03:14]} g5 $1 {[%emt 0:01:27]} 24. fxg5 {[%emt 0:02:40]} fxg5 {[%emt 0:00:03]} 25. Bxg5 {[%emt 0:01:27]} Qxg5 {[%emt 0:00:04]} 26. Qxa5 {[%emt 0:00:10][%cal Oe4e5]} Rg8 {[%emt 0:01:53][%csl Gg8][%cal Rg5g2]} 27. Re2 {[%emt 0:01:55]} Rdf8 $40 {[%emt 0:00:43][%mdl 128] Black goes for the king.} 28. Rfe1 {[%emt 0:01:51]} Qg3 {[%emt 0:00:58]} 29. e5 {[%emt 0:00:34]} (29. Qa2 $142) 29... Rf2 $17 {[%emt 0:00:20]} 30. Rxf2 {[%emt 0:00:25]} Qxf2 {[%emt 0:00:04][%csl Gg8][%cal Rf2g2][%mdl 4096] Endgame KQR-KQR} 31. Rg1 {[%emt 0:00:09]} dxe5 {[%emt 0:00:10]} 32. Qb6 {[%emt 0:00:02] Hoping for Qe6+.} Rg6 {[%emt 0:00:28] Inhibits Qe6+.} 33. Qb3 {[%emt 0:00:15]} Qd2 {[%emt 0:01:19] Against Qd5} ({Black should play} 33... Kb8 $17 34. Qd5 Ka7 35. Qxe5 h6) 34. Qf7 $11 {[%emt 0:00:31]} Qxc3 $2 {[%emt 0:00:55][%mdl 8192]} (34... e4 $11) 35. Qxh7 $4 {[%emt 0:01:31][%mdl 8192]} (35. Rb1 $18 {was the only winning move.} Kd8 36. Qxb7) 35... Rd6 $2 {[%emt 0:00:30]} (35... Qxc2 $19 {...Qe4 is the strong threat.} 36. Qh8+ Kc7 37. Qxe5+ Kb6) 36. Rb1 $1 {[%emt 0:00:27]} Rd7 {[%emt 0:00:21][%mdl 8192] [#]} (36... b6 $11) 37. Qg8+ $1 $18 {[%emt 0:00:18]} Kc7 {[%emt 0:00:09]} 38. Qe6 $2 {[%emt 0:00:33]} (38. Qa8 $18 b6 39. Qa7+ (39. Qxa6 Qa5 $16) 39... Kd8 40. Qb8+ Ke7 41. Rf1) 38... Qd4 {[%emt 0:01:00]} ({Black should try} 38... Qxc2 $17 39. Rxb7+ (39. Qxe5+ Kc8 $17) 39... Kxb7 40. Qxd7+ Kb6 41. Qd6+ Kb5 42. Qxe5 a5 43. Qe8+ Kb4 44. Qe1+ Qc3 45. Qb1+ Qb3 46. Qe1+ Ka4 47. Qa1+ Kb4 48. Qe1+ Ka4) 39. Re1 {[%emt 0:00:29]} (39. Qb6+ $11 {remains equal.} Kc8 40. Kh2) 39... Rd5 {[%emt 0:00:35]} (39... a5 $17 {And now ...a4 would win.} 40. Qe8 b6) 40. c3 $2 {[%emt 0:00:30]} (40. Qe7+ $11 Rd7 41. Qg5) 40... Qxc3 $19 {[%emt 0:00:04]} 41. Rf1 {[%emt 0:00:40]} (41. Rb1 $142 Rd6 42. Qe7+ Rd7 43. Rxb7+ (43. Qe6 $2 Qd3 $19) 43... Kxb7 44. Qxd7+ Kb6 45. Kh2) 41... Rd7 {[%emt 0:00:20]} 42. Rf6 {[%emt 0:00:29] Intending Qb6+ and mate.} Qd4 $2 {[%emt 0:00:59]} ({Better is} 42... Qb2 $19 {Threatens to win with ...a5.} 43. Kh2 a5) 43. Qb6+ $11 {[%emt 0:00:28] The position is equal.} Kc8 {[%emt 0:00:04]} 44. Rf8+ {[%emt 0:00:16]} Rd8 {[%emt 0:00:05]} 45. Rf7 {[%emt 0:00:47][%csl Gf7][%cal Rb6b7]} Rd7 {[%emt 0:00:33]} 46. Rf8+ {[%emt 0:00:25]} Rd8 {[%emt 0:00:04]} 47. Rf7 {[%emt 0:00:10][%csl Gf7][%cal Rb6b7]} Rd7 {[%emt 0:00:20] Weighted Error Value: White=0.59/Black=0.63} 1/2-1/2